[Event "Turkish Cup 2022"]
[Site "Sakarya"]
[Date "2022.03.27"]
[Round "4.2"]
[White "Caputcuoglu, Zeki Berke"]
[Black "Isik, Alparslan"]
[Result "1-0"]
[ECO "B47"]
[WhiteElo "2095"]
[BlackElo "2328"]
[Annotator "NA"]
[PlyCount "77"]
[EventDate "2022.03.25"]
[EventType "swiss"]
[EventCountry "TUR"]
[SourceTitle "playchess.com"]
[Source "ChessBase"]
[SourceQuality "1"]
[TimeControl "5400+30"]

1. e4 {[%emt 0:02:00]} c5 {[%emt 0:01:00]} 2. Nf3 {[%emt 0:00:30]} e6 {[%emt 0:00:30]} 3. d4 {[%emt 0:00:00]} cxd4 {[%emt 0:00:00]} 4. Nxd4 {[%emt 0:00:00]} Nc6 {[%emt 0:00:00]} 5. Nc3 {[%emt 0:00:30]} Qc7 {[%emt 0:00:00]} 6. g3 {[%emt 0:00:30]} a6 {[%emt 0:00:00]} 7. Bg2 {[%emt 0:00:30]} h5 {[%emt 0:00:30]} 8. h3 {[%emt 0:04:30]} b5 {[%emt 0:07:30]} 9. O-O {[%emt 0:06:30]} Nf6 {[%emt 0:19:30]} 10. Re1 {[%emt 0:11:30]} Nxd4 {[%emt 0:15:30]} 11. Qxd4 {[%emt 0:00:30]} Bc5 {[%emt 0:14:30]} 12. Qd3 {[%emt 0:00:30]} e5 {[%emt 0:00:00]} 13. Bg5 {[%emt 0:12:30]} Bb7 {[%emt 0:00:00]} 14. Bxf6 {[%emt 0:12:30]} gxf6 {[%emt 0:00:30]} 15. Nd5 {[%emt 0:02:30]} Bxd5 {[%emt 0:00:30]} 16. exd5 {[%emt 0:00:30]} d6 {[%emt 0:01:30]} 17. h4 {[%emt 0:10:30]} Qd7 {[%emt 0:04:30]} 18. Re2 {[%emt 0:02:30]} Qg4 {[%emt 0:04:30]} 19. Be4 {[%emt 0:02:30]} Ke7 {[%emt 0:08:30]} 20. c3 {[%emt 0:02:30]} a5 {[%emt 0:01:30]} 21. Rc1 {[%emt 0:07:30]} Rab8 {[%emt 0:06:42]} 22. b4 {[%emt 0:01:40]} axb4 {[%emt 0:00:14]} 23. cxb4 {[%emt 0:02:02]} Bb6 {[%emt 0:04:53]} 24. Bf5 {[%emt 0:04:53]} Qxb4 {[%emt 0:01:08]} 25. Rc6 {[%emt 0:01:24]} Rb7 {[%emt 0:01:42]} 26. Rec2 {[%emt 0:05:36]} Qd4 {[%emt 0:02:30]} 27. Qf3 {[%emt 0:01:46]} Ra7 {[%emt 0:00:20]} 28. Be4 {[%emt 0:01:16]} Rd8 {[%emt 0:01:13]} 29. Qf5 {[%emt 0:01:38]} Bc5 {[%emt 0:00:37]} 30. R2xc5 {[%emt 0:00:36]} dxc5 {[%emt 0:00:33]} 31. Qxf6+ {[%emt 0:01:28]} Ke8 {[%emt 0:00:11]} 32. Qh8+ {[%emt 0:00:42]} Ke7 {[%emt 0:00:36]} 33. Qf6+ {[%emt 0:00:30]} Ke8 {[%emt 0:00:00]} 34. Bg6 {[%emt 0:01:39]} Qd1+ {[%emt 0:05:12]} 35. Kh2 {[%emt 0:00:38]} Qxd5 {[%emt 0:00:30]} 36. Re6+ {[%emt 0:00:05]} Kd7 {[%emt 0:00:00]} 37. Re7+ {[%emt 0:00:54]} Kc8 {[%emt 0:00:00]} 38. Rxa7 {[%emt 0:00:07]} Rd6 {[%emt 0:01:07]} 39. Qe7 {[%emt 0:00:38]} 1-0

[Event "Turkish Cup 2022"]
[Site "Sakarya"]
[Date "2022.03.27"]
[Round "4.3"]
[White "Sevgi, Volkan"]
[Black "Ererdem, Gani Eren"]
[Result "1-0"]
[ECO "A57"]
[WhiteElo "2344"]
[BlackElo "2134"]
[Annotator "NA"]
[PlyCount "79"]
[EventDate "2022.03.25"]
[EventType "swiss"]
[EventCountry "TUR"]
[SourceTitle "playchess.com"]
[Source "ChessBase"]
[SourceQuality "1"]
[TimeControl "5400+30"]

1. d4 {[%emt 0:01:00]} Nf6 {[%emt 0:04:00]} 2. c4 {[%emt 0:00:30]} c5 {[%emt 0:07:30]} 3. d5 {[%emt 0:02:30]} b5 {[%emt 0:00:30]} 4. f3 {[%emt 0:01:30]} bxc4 {[%emt 0:03:30]} 5. e4 {[%emt 0:00:30]} d6 {[%emt 0:00:30]} 6. Bxc4 {[%emt 0:05:30]} g6 {[%emt 0:00:30]} 7. Nc3 {[%emt 0:02:30]} Bg7 {[%emt 0:00:30]} 8. Nge2 {[%emt 0:00:30]} O-O {[%emt 0:00:30]} 9. Be3 {[%emt 0:01:30]} Nfd7 {[%emt 0:09:30]} 10. f4 {[%emt 0:19:30]} Ba6 {[%emt 0:21:30]} 11. Bxa6 {[%emt 0:06:30]} Nxa6 {[%emt 0:00:30]} 12. O-O {[%emt 0:00:30]} Qa5 {[%emt 0:07:30]} 13. a3 {[%emt 0:09:30]} Rfc8 {[%emt 0:12:30]} 14. e5 {[%emt 0:10:30]} dxe5 {[%emt 0:03:30]} 15. b4 {[%emt 0:00:30]} Qd8 {[%emt 0:01:30]} 16. d6 {[%emt 0:08:30]} cxb4 {[%emt 0:06:17]} 17. dxe7 {[%emt 0:07:39]} Qxe7 {[%emt 0:00:30]} 18. Nd5 {[%emt 0:00:21]} Qe6 {[%emt 0:00:25]} 19. f5 {[%emt 0:00:00]} gxf5 {[%emt 0:00:59]} 20. Ng3 {[%emt 0:00:00]} f4 {[%emt 0:03:14]} 21. Nf5 {[%emt 0:00:30]} Bf8 {[%emt 0:00:13]} 22. Rxf4 {[%emt 0:06:54]} exf4 {[%emt 0:03:28]} 23. Nde7+ {[%emt 0:02:14]} Kh8 {[%emt 0:00:40]} 24. Qg4 {[%emt 0:00:11]} f6 {[%emt 0:01:27]} 25. Ng6+ {[%emt 0:05:06]} hxg6 {[%emt 0:02:16]} 26. Qh3+ {[%emt 0:00:01]} Kg8 {[%emt 0:00:13]} 27. Nh6+ {[%emt 0:00:30]} Bxh6 {[%emt 0:00:30]} 28. Qxe6+ {[%emt 0:00:00]} Kh8 {[%emt 0:00:52]} 29. Bd4 {[%emt 0:00:00]} Nac5 {[%emt 0:02:09]} 30. Qh3 {[%emt 0:00:00]} Kh7 {[%emt 0:05:28]} 31. axb4 {[%emt 0:00:00]} f5 {[%emt 0:00:43]} 32. bxc5 {[%emt 0:00:32]} Nxc5 {[%emt 0:00:40]} 33. Re1 {[%emt 0:00:32]} Ne4 {[%emt 0:02:35]} 34. Rxe4 {[%emt 0:00:30]} fxe4 {[%emt 0:00:30]} 35. Qd7+ {[%emt 0:00:00]} Kg8 {[%emt 0:00:00]} 36. Qe6+ {[%emt 0:00:40]} Kf8 {[%emt 0:00:27]} 37. Qf6+ {[%emt 0:00:30]} Ke8 {[%emt 0:00:00]} 38. Qxg6+ {[%emt 0:00:17]} Kd7 {[%emt 0:00:00]} 39. Qh7+ {[%emt 0:01:04]} Ke8 {[%emt 0:00:25]} 40. Qxe4+ {[%emt 0:00:12]} 1-0

[Event "Turkish Cup 2022"]
[Site "Sakarya"]
[Date "2022.03.27"]
[Round "4.4"]
[White "Kilic, Eray"]
[Black "Samani, Yamac"]
[Result "0-1"]
[ECO "C00"]
[WhiteElo "2088"]
[BlackElo "2257"]
[Annotator "NA"]
[PlyCount "116"]
[EventDate "2022.03.25"]
[EventType "swiss"]
[EventCountry "TUR"]
[SourceTitle "playchess.com"]
[Source "ChessBase"]
[SourceQuality "1"]
[TimeControl "5400+30"]

1. e4 {[%emt 0:01:00]} e6 {[%emt 0:01:00]} 2. c4 {[%emt 0:00:30]} d5 {[%emt 0:03:30]} 3. exd5 {[%emt 0:03:30]} exd5 {[%emt 0:01:30]} 4. cxd5 {[%emt 0:00:30]} Nf6 {[%emt 0:00:00]} 5. Bb5+ {[%emt 0:06:30]} Nbd7 {[%emt 0:01:00]} 6. Nc3 {[%emt 0:01:30]} Be7 {[%emt 0:03:30]} 7. Nf3 {[%emt 0:01:30]} O-O {[%emt 0:01:30]} 8. O-O {[%emt 0:00:00]} Nb6 {[%emt 0:00:30]} 9. d4 {[%emt 0:01:00]} Bg4 {[%emt 0:06:30]} 10. h3 {[%emt 0:00:30]} Bh5 {[%emt 0:00:30]} 11. Re1 {[%emt 0:03:30]} Nfxd5 {[%emt 0:07:30]} 12. Re5 {[%emt 0:11:30]} Bg6 {[%emt 0:02:30]} 13. Qb3 {[%emt 0:03:30]} Nb4 {[%emt 0:27:30]} 14. Bg5 {[%emt 0:04:30]} Bxg5 {[%emt 0:03:30]} 15. Rxg5 {[%emt 0:01:30]} a5 {[%emt 0:04:30]} 16. Rc1 {[%emt 0:13:30]} c6 {[%emt 0:06:30]} 17. Bf1 {[%emt 0:01:30]} Nd3 {[%emt 0:04:30]} 18. Rd1 {[%emt 0:04:30]} Nb4 {[%emt 0:04:08]} 19. Rd2 {[%emt 0:10:30]} Kh8 {[%emt 0:04:49]} 20. Rg3 {[%emt 0:04:30]} f6 {[%emt 0:06:30]} 21. Nh4 {[%emt 0:01:30]} Bf7 {[%emt 0:00:42]} 22. Qd1 {[%emt 0:00:30]} g5 {[%emt 0:01:16]} 23. Nf5 {[%emt 0:10:53]} Bg6 {[%emt 0:00:16]} 24. Rf3 {[%emt 0:00:36]} Qd7 {[%emt 0:00:50]} 25. g4 {[%emt 0:01:16]} Rae8 {[%emt 0:00:32]} 26. Re2 {[%emt 0:03:22]} N4d5 {[%emt 0:00:31]} 27. Ne4 {[%emt 0:01:42]} Nf4 {[%emt 0:00:57]} 28. Ree3 {[%emt 0:01:24]} Nbd5 {[%emt 0:01:30]} 29. Nc5 {[%emt 0:00:49]} Qc7 {[%emt 0:01:22]} 30. Re1 {[%emt 0:03:14]} Rxe1 {[%emt 0:01:25]} 31. Qxe1 {[%emt 0:00:30]} Re8 {[%emt 0:00:30]} 32. Ne3 {[%emt 0:00:30]} b6 {[%emt 0:00:30]} 33. Nb3 {[%emt 0:00:30]} Qd7 {[%emt 0:00:30]} 34. Nd2 {[%emt 0:00:39]} h5 {[%emt 0:00:46]} 35. Qd1 {[%emt 0:00:04]} Nxe3 {[%emt 0:00:46]} 36. fxe3 {[%emt 0:02:03]} hxg4 {[%emt 0:00:18]} 37. Rg3 {[%emt 0:00:23]} Nxh3+ {[%emt 0:01:02]} 38. Bxh3 {[%emt 0:00:30]} gxh3 {[%emt 0:00:30]} 39. Qf3 {[%emt 0:00:30]} Kg7 {[%emt 0:00:30]} 40. Kh2 {[%emt 0:00:30]} Qd5 {[%emt 0:00:00]} 41. Qg4 {[%emt 0:01:06]} Bf5 {[%emt 0:01:01]} 42. Qf4 {[%emt 0:00:16]} Qb5 {[%emt 0:00:40]} 43. Qf2 {[%emt 0:02:37]} Bg6 {[%emt 0:02:02]} 44. b3 {[%emt 0:00:30]} Qf5 {[%emt 0:00:31]} 45. Rf3 {[%emt 0:00:03]} Qg4 {[%emt 0:00:17]} 46. Rg3 {[%emt 0:00:43]} Qd1 {[%emt 0:00:47]} 47. Rxh3 {[%emt 0:00:50]} Qg4 {[%emt 0:01:12]} 48. Qg2 {[%emt 0:00:15]} Qxg2+ {[%emt 0:00:44]} 49. Kxg2 {[%emt 0:00:30]} a4 {[%emt 0:00:30]} 50. b4 {[%emt 0:00:30]} c5 {[%emt 0:00:00]} 51. bxc5 {[%emt 0:00:50]} bxc5 {[%emt 0:00:01]} 52. d5 {[%emt 0:00:01]} Re5 {[%emt 0:01:00]} 53. e4 {[%emt 0:00:29]} Bxe4+ {[%emt 0:00:00]} 54. Nxe4 {[%emt 0:00:30]} Rxe4 {[%emt 0:00:30]} 55. Rc3 {[%emt 0:00:30]} c4 {[%emt 0:00:11]} 56. d6 {[%emt 0:00:00]} Rd4 {[%emt 0:00:32]} 57. d7 {[%emt 0:00:00]} Rxd7 {[%emt 0:00:30]} 58. Rxc4 {[%emt 0:00:08]} Rd2+ {[%emt 0:00:00]} 0-1

[Event "Turkish Cup 2022"]
[Site "Sakarya"]
[Date "2022.03.27"]
[Round "4.5"]
[White "Huseyinoglu, Alihan"]
[Black "Gulden, Egemen"]
[Result "0-1"]
[ECO "A54"]
[WhiteElo "2312"]
[BlackElo "2094"]
[Annotator "NA"]
[PlyCount "96"]
[EventDate "2022.03.25"]
[EventType "swiss"]
[EventCountry "TUR"]
[SourceTitle "playchess.com"]
[Source "ChessBase"]
[SourceQuality "1"]
[TimeControl "5400+30"]

1. c4 {[%emt 0:01:00]} d6 {[%emt 0:02:00]} 2. d4 {[%emt 0:02:30]} e5 {[%emt 0:00:30]} 3. Nc3 {[%emt 0:01:30]} Nf6 {[%emt 0:04:30]} 4. Nf3 {[%emt 0:04:30]} Nbd7 {[%emt 0:01:30]} 5. g3 {[%emt 0:05:30]} c6 {[%emt 0:04:30]} 6. Bg2 {[%emt 0:01:30]} Be7 {[%emt 0:01:30]} 7. O-O {[%emt 0:02:30]} O-O {[%emt 0:02:30]} 8. Qc2 {[%emt 0:08:30]} Qc7 {[%emt 0:07:30]} 9. e4 {[%emt 0:09:30]} a6 {[%emt 0:09:30]} 10. a4 {[%emt 0:09:30]} a5 {[%emt 0:07:30]} 11. h3 {[%emt 0:04:30]} Nb8 {[%emt 0:10:30]} 12. c5 {[%emt 0:09:30]} dxc5 {[%emt 0:11:30]} 13. dxe5 {[%emt 0:01:30]} Ne8 {[%emt 0:00:00]} 14. Bf4 {[%emt 0:08:30]} Be6 {[%emt 0:00:00]} 15. Ng5 {[%emt 0:16:02]} Bxg5 {[%emt 0:05:30]} 16. Bxg5 {[%emt 0:00:30]} Qxe5 {[%emt 0:00:30]} 17. Bf4 {[%emt 0:05:27]} Qf6 {[%emt 0:07:30]} 18. e5 {[%emt 0:01:07]} Qe7 {[%emt 0:00:30]} 19. Ne4 {[%emt 0:01:04]} Na6 {[%emt 0:03:55]} 20. Bg5 {[%emt 0:04:18]} Qc7 {[%emt 0:04:23]} 21. f4 {[%emt 0:00:28]} c4 {[%emt 0:07:15]} 22. f5 {[%emt 0:00:52]} Bd5 {[%emt 0:00:06]} 23. Qc3 {[%emt 0:00:46]} Nb4 {[%emt 0:03:25]} 24. f6 {[%emt 0:00:28]} g6 {[%emt 0:01:50]} 25. Rad1 {[%emt 0:01:22]} Nd3 {[%emt 0:00:38]} 26. Rxd3 {[%emt 0:00:00]} cxd3 {[%emt 0:00:48]} 27. Bh6 {[%emt 0:00:12]} Qb6+ {[%emt 0:00:00]} 28. Nc5 {[%emt 0:00:53]} Nc7 {[%emt 0:01:10]} 29. Bxf8 {[%emt 0:00:33]} Rxf8 {[%emt 0:00:11]} 30. Rf2 {[%emt 0:00:25]} Bxg2 {[%emt 0:00:52]} 31. Kxg2 {[%emt 0:00:14]} Nd5 {[%emt 0:01:36]} 32. Qc1 {[%emt 0:00:29]} d2 {[%emt 0:01:08]} 33. Rxd2 {[%emt 0:00:32]} Re8 {[%emt 0:00:47]} 34. e6 {[%emt 0:00:45]} Qb4 {[%emt 0:01:05]} 35. Rf2 {[%emt 0:00:31]} Qd4 {[%emt 0:01:06]} 36. Kg1 {[%emt 0:00:29]} Nxf6 {[%emt 0:00:01]} 37. Kf1 {[%emt 0:00:59]} b6 {[%emt 0:00:17]} 38. Nd7 {[%emt 0:00:03]} Rxe6 {[%emt 0:00:10]} 39. Nxf6+ {[%emt 0:01:00]} Rxf6 {[%emt 0:00:30]} 40. Rxf6 {[%emt 0:00:30]} Qxf6+ {[%emt 0:00:30]} 41. Kg2 {[%emt 0:00:00]} Qd6 {[%emt 0:00:00]} 42. Qe3 {[%emt 0:00:00]} Qd5+ {[%emt 0:00:00]} 43. Kh2 {[%emt 0:00:00]} Qc5 {[%emt 0:00:24]} 44. Qd2 {[%emt 0:01:00]} b5 {[%emt 0:00:51]} 45. Qxa5 {[%emt 0:01:17]} Qc2+ {[%emt 0:00:03]} 46. Kh1 {[%emt 0:00:26]} Qc1+ {[%emt 0:00:07]} 47. Kg2 {[%emt 0:00:24]} Qxb2+ {[%emt 0:00:03]} 48. Kf1 {[%emt 0:00:14]} Qa1+ {[%emt 0:00:39]} 0-1

[Event "Turkish Cup 2022"]
[Site "Sakarya"]
[Date "2022.03.27"]
[Round "4.6"]
[White "Baltaci, Ismail Tarik"]
[Black "Eren, Ataberk"]
[Result "1-0"]
[ECO "C01"]
[WhiteElo "2033"]
[BlackElo "2306"]
[Annotator "NA"]
[PlyCount "97"]
[EventDate "2022.03.25"]
[EventType "swiss"]
[EventCountry "TUR"]
[SourceTitle "playchess.com"]
[Source "ChessBase"]
[SourceQuality "1"]
[TimeControl "5400+30"]

1. e4 {[%emt 0:01:00]} e6 {[%emt 0:01:00]} 2. d4 {[%emt 0:00:30]} d5 {[%emt 0:00:30]} 3. Nc3 {[%emt 0:00:00]} Nf6 {[%emt 0:00:00]} 4. exd5 {[%emt 0:00:00]} exd5 {[%emt 0:00:00]} 5. Bg5 {[%emt 0:00:00]} c6 {[%emt 0:01:30]} 6. Bd3 {[%emt 0:01:00]} Bd6 {[%emt 0:00:30]} 7. Qd2 {[%emt 0:02:30]} O-O {[%emt 0:00:30]} 8. O-O-O {[%emt 0:04:30]} Nbd7 {[%emt 0:00:30]} 9. Re1 {[%emt 0:03:30]} b5 {[%emt 0:00:30]} 10. Nf3 {[%emt 0:00:30]} Qc7 {[%emt 0:00:30]} 11. Kb1 {[%emt 0:12:30]} a5 {[%emt 0:05:30]} 12. Nh4 {[%emt 0:19:30]} b4 {[%emt 0:05:30]} 13. Na4 {[%emt 0:01:30]} h6 {[%emt 0:14:30]} 14. Nf5 {[%emt 0:11:30]} Nh5 {[%emt 0:53:34]} 15. Bxh6 {[%emt 0:03:30]} gxh6 {[%emt 0:09:29]} 16. Qxh6 {[%emt 0:00:30]} Ndf6 {[%emt 0:00:00]} 17. Nxd6 {[%emt 0:00:30]} Qxd6 {[%emt 0:00:15]} 18. Bh7+ {[%emt 0:00:30]} Kh8 {[%emt 0:00:30]} 19. Bg6+ {[%emt 0:00:30]} Kg8 {[%emt 0:00:00]} 20. Bxh5 {[%emt 0:00:30]} Ne4 {[%emt 0:00:00]} 21. Qc1 {[%emt 0:06:30]} Qf6 {[%emt 0:00:19]} 22. f3 {[%emt 0:01:30]} Nd6 {[%emt 0:00:13]} 23. Re5 {[%emt 0:00:30]} Bf5 {[%emt 0:00:23]} 24. Bg4 {[%emt 0:04:30]} Bg6 {[%emt 0:00:16]} 25. Nb6 {[%emt 0:00:30]} Nb5 {[%emt 0:02:09]} 26. Nd7 {[%emt 0:02:30]} Qg7 {[%emt 0:01:07]} 27. Qf4 {[%emt 0:05:03]} Rfd8 {[%emt 0:00:28]} 28. Nf6+ {[%emt 0:02:51]} Kf8 {[%emt 0:00:47]} 29. Bh5 {[%emt 0:01:11]} Rd6 {[%emt 0:01:31]} 30. Ng4 {[%emt 0:01:33]} a4 {[%emt 0:01:08]} 31. Bxg6 {[%emt 0:02:35]} Rxg6 {[%emt 0:00:10]} 32. Rhe1 {[%emt 0:00:58]} b3 {[%emt 0:00:22]} 33. cxb3 {[%emt 0:02:05]} axb3 {[%emt 0:00:07]} 34. axb3 {[%emt 0:00:29]} Qh7 {[%emt 0:01:47]} 35. Kc1 {[%emt 0:03:10]} Nc7 {[%emt 0:01:08]} 36. Re7 {[%emt 0:03:25]} Ra1+ {[%emt 0:01:02]} 37. Kd2 {[%emt 0:00:07]} Rxe1 {[%emt 0:00:23]} 38. Rxe1 {[%emt 0:00:13]} Ne6 {[%emt 0:00:32]} 39. Qb8+ {[%emt 0:00:29]} Kg7 {[%emt 0:00:55]} 40. Qe5+ {[%emt 0:00:05]} Kf8 {[%emt 0:00:25]} 41. Ra1 {[%emt 0:00:16]} Rxg4 {[%emt 0:00:15]} 42. Ra8+ {[%emt 0:00:58]} Ke7 {[%emt 0:00:30]} 43. fxg4 {[%emt 0:00:00]} Qh4 {[%emt 0:00:22]} 44. Kc3 {[%emt 0:01:49]} c5 {[%emt 0:00:44]} 45. dxc5 {[%emt 0:01:43]} d4+ {[%emt 0:00:30]} 46. Kc4 {[%emt 0:00:00]} Qh7 {[%emt 0:00:17]} 47. Ra7+ {[%emt 0:01:37]} Kf8 {[%emt 0:00:59]} 48. Qf5 {[%emt 0:00:17]} Qg7 {[%emt 0:00:12]} 49. Qxe6 {[%emt 0:00:11]} 1-0

[Event "Turkish Cup 2022"]
[Site "Sakarya"]
[Date "2022.03.27"]
[Round "4.7"]
[White "Ozsakallioglu, Okan"]
[Black "Yavuz, Efe Metehan"]
[Result "1-0"]
[ECO "C65"]
[WhiteElo "2270"]
[BlackElo "2054"]
[Annotator "NA"]
[PlyCount "83"]
[EventDate "2022.03.25"]
[EventType "swiss"]
[EventCountry "TUR"]
[SourceTitle "playchess.com"]
[Source "ChessBase"]
[SourceQuality "1"]
[TimeControl "5400+30"]

1. e4 {[%emt 0:09:00]} e5 {[%emt 0:01:00]} 2. Nf3 {[%emt 0:00:30]} Nc6 {[%emt 0:00:30]} 3. Bb5 {[%emt 0:00:30]} Nf6 {[%emt 0:01:30]} 4. d3 {[%emt 0:00:30]} Bc5 {[%emt 0:02:30]} 5. c3 {[%emt 0:00:30]} d6 {[%emt 0:03:30]} 6. d4 {[%emt 0:06:30]} exd4 {[%emt 0:01:30]} 7. cxd4 {[%emt 0:00:30]} Bb4+ {[%emt 0:09:30]} 8. Bd2 {[%emt 0:01:30]} O-O {[%emt 0:16:30]} 9. Bxc6 {[%emt 0:08:30]} Bxd2+ {[%emt 0:00:30]} 10. Nbxd2 {[%emt 0:00:30]} bxc6 {[%emt 0:00:30]} 11. O-O {[%emt 0:00:00]} Nd7 {[%emt 0:10:30]} 12. Qc2 {[%emt 0:03:00]} c5 {[%emt 0:02:30]} 13. Rfc1 {[%emt 0:09:30]} Bb7 {[%emt 0:05:30]} 14. b4 {[%emt 0:00:30]} Re8 {[%emt 0:21:30]} 15. bxc5 {[%emt 0:00:30]} dxc5 {[%emt 0:00:30]} 16. dxc5 {[%emt 0:14:30]} Bc6 {[%emt 0:00:30]} 17. Nd4 {[%emt 0:01:30]} Qf6 {[%emt 0:00:30]} 18. Nxc6 {[%emt 0:00:30]} Qxc6 {[%emt 0:00:30]} 19. f3 {[%emt 0:00:00]} Re5 {[%emt 0:01:42]} 20. Nb3 {[%emt 0:00:00]} Rae8 {[%emt 0:03:11]} 21. Qf2 {[%emt 0:00:30]} Qg6 {[%emt 0:00:57]} 22. c6 {[%emt 0:02:30]} Nb6 {[%emt 0:02:38]} 23. Nd4 {[%emt 0:02:30]} Nc8 {[%emt 0:01:58]} 24. Nf5 {[%emt 0:00:30]} Nd6 {[%emt 0:00:17]} 25. Ng3 {[%emt 0:13:30]} Ra5 {[%emt 0:01:07]} 26. Rc5 {[%emt 0:00:30]} Ra6 {[%emt 0:00:46]} 27. Qd4 {[%emt 0:02:30]} Rb8 {[%emt 0:02:36]} 28. Ne2 {[%emt 0:04:04]} Rab6 {[%emt 0:01:15]} 29. Rac1 {[%emt 0:00:43]} Qh6 {[%emt 0:01:26]} 30. R5c2 {[%emt 0:01:37]} a6 {[%emt 0:00:30]} 31. h3 {[%emt 0:00:43]} Qg5 {[%emt 0:02:06]} 32. Rc5 {[%emt 0:00:30]} Qh6 {[%emt 0:00:30]} 33. Kh2 {[%emt 0:00:24]} Rb4 {[%emt 0:00:08]} 34. Qc3 {[%emt 0:02:38]} Rb2 {[%emt 0:01:13]} 35. Rc2 {[%emt 0:00:30]} Rb1 {[%emt 0:00:21]} 36. Qd2 {[%emt 0:02:17]} Qh4 {[%emt 0:01:36]} 37. Ng3 {[%emt 0:01:02]} g6 {[%emt 0:01:39]} 38. Rd5 {[%emt 0:01:03]} Ra1 {[%emt 0:01:11]} 39. Rxd6 {[%emt 0:01:22]} cxd6 {[%emt 0:00:35]} 40. c7 {[%emt 0:00:30]} Rc8 {[%emt 0:00:00]} 41. Qxd6 {[%emt 0:00:00]} Qh6 {[%emt 0:00:34]} 42. Nf5 {[%emt 0:00:00]} 1-0

[Event "Turkish Cup 2022"]
[Site "Sakarya"]
[Date "2022.03.27"]
[Round "4.8"]
[White "Yaran, Siar"]
[Black "Maruflu, Enes Yusuf"]
[Result "1/2-1/2"]
[ECO "A14"]
[WhiteElo "2272"]
[BlackElo "1945"]
[Annotator "NA"]
[PlyCount "109"]
[EventDate "2022.03.25"]
[EventType "swiss"]
[EventCountry "TUR"]
[SourceTitle "playchess.com"]
[Source "ChessBase"]
[SourceQuality "1"]
[TimeControl "5400+30"]

1. c4 {[%emt 0:01:00]} e6 {[%emt 0:01:00]} 2. Nf3 {[%emt 0:00:30]} d5 {[%emt 0:00:30]} 3. g3 {[%emt 0:00:30]} Nf6 {[%emt 0:02:30]} 4. Bg2 {[%emt 0:00:00]} Be7 {[%emt 0:00:30]} 5. O-O {[%emt 0:01:00]} O-O {[%emt 0:00:30]} 6. b3 {[%emt 0:00:00]} dxc4 {[%emt 0:00:30]} 7. bxc4 {[%emt 0:00:00]} c5 {[%emt 0:00:00]} 8. Nc3 {[%emt 0:05:30]} Nc6 {[%emt 0:00:00]} 9. Rb1 {[%emt 0:02:30]} a6 {[%emt 0:02:30]} 10. d3 {[%emt 0:02:30]} h6 {[%emt 0:01:30]} 11. Bf4 {[%emt 0:08:30]} Bd6 {[%emt 0:04:30]} 12. Qc1 {[%emt 0:09:30]} Qc7 {[%emt 0:07:30]} 13. Na4 {[%emt 0:26:30]} Nd7 {[%emt 0:18:30]} 14. Rd1 {[%emt 0:05:30]} b5 {[%emt 0:05:30]} 15. cxb5 {[%emt 0:14:30]} axb5 {[%emt 0:00:00]} 16. Nxc5 {[%emt 0:00:30]} Nxc5 {[%emt 0:05:00]} 17. Qxc5 {[%emt 0:01:02]} e5 {[%emt 0:00:30]} 18. Bxe5 {[%emt 0:01:17]} Nxe5 {[%emt 0:00:00]} 19. Qxc7 {[%emt 0:00:52]} Bxc7 {[%emt 0:00:00]} 20. Nxe5 {[%emt 0:00:30]} Rxa2 {[%emt 0:00:30]} 21. Nc6 {[%emt 0:13:31]} Rxe2 {[%emt 0:00:30]} 22. Bf3 {[%emt 0:01:05]} Re6 {[%emt 0:01:30]} 23. Rxb5 {[%emt 0:00:22]} Bd7 {[%emt 0:02:30]} 24. Rc1 {[%emt 0:00:34]} Rc8 {[%emt 0:11:30]} 25. Rbc5 {[%emt 0:01:14]} Bb6 {[%emt 0:00:00]} 26. Ne7+ {[%emt 0:00:23]} Rxe7 {[%emt 0:00:00]} 27. Rxc8+ {[%emt 0:00:30]} Bxc8 {[%emt 0:00:30]} 28. Rxc8+ {[%emt 0:00:30]} Kh7 {[%emt 0:00:30]} 29. h4 {[%emt 0:00:30]} Rc7 {[%emt 0:00:30]} 30. Rb8 {[%emt 0:01:14]} Ba7 {[%emt 0:00:30]} 31. Ra8 {[%emt 0:01:29]} g6 {[%emt 0:00:30]} 32. h5 {[%emt 0:00:32]} Kg7 {[%emt 0:00:30]} 33. Kg2 {[%emt 0:00:44]} Kf6 {[%emt 0:01:30]} 34. hxg6 {[%emt 0:00:37]} fxg6 {[%emt 0:01:30]} 35. Be4 {[%emt 0:00:30]} h5 {[%emt 0:03:30]} 36. Rg8 {[%emt 0:01:12]} Rg7 {[%emt 0:00:30]} 37. Rc8 {[%emt 0:00:00]} g5 {[%emt 0:00:30]} 38. Rc6+ {[%emt 0:00:25]} Ke5 {[%emt 0:00:30]} 39. Bg6 {[%emt 0:01:19]} h4 {[%emt 0:01:30]} 40. f4+ {[%emt 0:00:26]} gxf4 {[%emt 0:00:30]} 41. gxh4 {[%emt 0:00:04]} Rb7 {[%emt 0:02:30]} 42. Be4 {[%emt 0:01:18]} Rg7+ {[%emt 0:01:30]} 43. Bg6 {[%emt 0:00:30]} Rb7 {[%emt 0:00:30]} 44. Be4 {[%emt 0:00:00]} Rg7+ {[%emt 0:00:00]} 45. Kh2 {[%emt 0:00:47]} Rg4 {[%emt 0:06:00]} 46. Rh6 {[%emt 0:00:21]} Bg1+ {[%emt 0:00:30]} 47. Kh1 {[%emt 0:00:04]} Kd4 {[%emt 0:01:30]} 48. Bf5 {[%emt 0:00:22]} Rg3 {[%emt 0:01:30]} 49. Re6 {[%emt 0:01:20]} f3 {[%emt 0:00:36]} 50. Re4+ {[%emt 0:00:49]} Kc3 {[%emt 0:03:39]} 51. Bg4 {[%emt 0:00:33]} Kxd3 {[%emt 0:04:40]} 52. Rf4 {[%emt 0:00:26]} Be3 {[%emt 0:03:19]} 53. Rxf3 {[%emt 0:00:50]} Rxf3 {[%emt 0:00:30]} 54. Bxf3 {[%emt 0:00:30]} Bh6 {[%emt 0:00:30]} 55. Kg2 {[%emt 0:00:00]} 1/2-1/2